[Event "Titled Tuesday Blitz February 07 Late 2023"]
[White "Bikuzhin, Maksim"]
[Black "Ortega Amarelle, Mariano"]
[WhiteFideId "24128015"]
[BlackFideId "3504301"]
[WhiteElo "2279"]
[BlackElo "2472"]
[Result "1-0"]
[Round "05"]
[TimeControl "180+2"]
[Date "2023.02.07"]
[WhiteClock "0:01:09"]
[BlackClock "0:00:12"]

1. e4 {[%clk 0:03:00]}  c6 {[%clk 0:02:56]} 2. d4 {[%clk 0:03:00]}  d5 {[%clk 0:02:56]} 3. e5 {[%clk 0:02:59]}  Bf5 {[%clk 0:02:56]} 4. h4 {[%clk 0:02:59]}  h5 {[%clk 0:02:54]} 5. c4 {[%clk 0:02:58]}  e6 {[%clk 0:02:52]} 6. Nc3 {[%clk 0:02:58]}  Ne7 {[%clk 0:02:48]} 7. Bg5 {[%clk 0:02:55]}  dxc4 {[%clk 0:02:44]} 8. Bxc4 {[%clk 0:02:54]}  Nd7 {[%clk 0:02:44]} 9. Nge2 {[%clk 0:02:51]}  Nb6 {[%clk 0:02:40]} 10. Bb3 {[%clk 0:02:51]}  Qd7 {[%clk 0:02:28]} 11. Ng3 {[%clk 0:02:45]}  Bg6 {[%clk 0:02:29]} 12. O-O {[%clk 0:02:34]}  Ned5 {[%clk 0:02:27]} 13. Nce4 {[%clk 0:02:31]}  Be7 {[%clk 0:01:36]} 14. Bxe7 {[%clk 0:02:16]}  Qxe7 {[%clk 0:01:36]} 15. Nd6+ {[%clk 0:02:17]}  Kf8 {[%clk 0:01:36]} 16. f4 {[%clk 0:02:07]}  Ne3 {[%clk 0:00:54]} 17. Qd2 {[%clk 0:02:07]}  Nf5 {[%clk 0:00:35]} 18. Ngxf5 {[%clk 0:01:51]}  Bxf5 {[%clk 0:00:36]} 19. g3 {[%clk 0:01:52]}  g6 {[%clk 0:00:30]} 20. a4 {[%clk 0:01:47]}  Rd8 {[%clk 0:00:25]} 21. a5 {[%clk 0:01:29]}  Nc8 {[%clk 0:00:23]} 22. Nxf5 {[%clk 0:01:30]}  gxf5 {[%clk 0:00:22]} 23. Rf3 {[%clk 0:01:28]}  Qd7 {[%clk 0:00:17]} 24. Rd3 {[%clk 0:01:24]}  Ne7 {[%clk 0:00:17]} 25. Bd1 {[%clk 0:01:21]}  c5 {[%clk 0:00:15]} 26. Rc1 {[%clk 0:01:16]}  cxd4 {[%clk 0:00:15]} 27. Rc4 {[%clk 0:01:16]}  Nc6 {[%clk 0:00:14]} 28. Bf3 {[%clk 0:01:12]}  Kg7 {[%clk 0:00:12]} 29. Bxc6 {[%clk 0:01:08]}  bxc6 {[%clk 0:00:12]} 30. Rcxd4 {[%clk 0:01:09]} 1-0


[Site "https://www.chess.com"]

[Event "Titled Tuesday Blitz February 07 Late 2023"]
[White "Oganian, Miran"]
[Black "Przybylski, Wojciech"]
[WhiteFideId "4122488"]
[BlackFideId "1117599"]
[WhiteElo "2439"]
[BlackElo "2321"]
[Result "1-0"]
[Round "05"]
[TimeControl "180+2"]
[Date "2023.02.07"]
[WhiteClock "0:01:54"]
[BlackClock "0:00:01"]

1. e4 {[%clk 0:03:00]}  c5 {[%clk 0:02:59]} 2. Nf3 {[%clk 0:02:54]}  e6 {[%clk 0:02:59]} 3. c3 {[%clk 0:02:46]}  d5 {[%clk 0:02:58]} 4. exd5 {[%clk 0:02:46]}  Qxd5 {[%clk 0:02:58]} 5. d4 {[%clk 0:02:46]}  Nc6 {[%clk 0:02:57]} 6. Be2 {[%clk 0:02:46]}  Nf6 {[%clk 0:02:55]} 7. O-O {[%clk 0:02:47]}  Be7 {[%clk 0:02:55]} 8. Na3 {[%clk 0:02:36]}  O-O {[%clk 0:02:51]} 9. Be3 {[%clk 0:02:33]}  cxd4 {[%clk 0:02:47]} 10. Nxd4 {[%clk 0:02:31]}  Ne5 {[%clk 0:02:36]} 11. Ndb5 {[%clk 0:02:29]}  Bd7 {[%clk 0:02:11]} 12. f4 {[%clk 0:02:23]}  Qxd1 {[%clk 0:02:03]} 13. Raxd1 {[%clk 0:02:22]}  Nc6 {[%clk 0:01:59]} 14. g4 {[%clk 0:02:19]}  Rfd8 {[%clk 0:01:55]} 15. Bf3 {[%clk 0:02:18]}  a6 {[%clk 0:01:09]} 16. Nd6 {[%clk 0:02:15]}  Rab8 {[%clk 0:01:04]} 17. g5 {[%clk 0:02:12]}  Ne8 {[%clk 0:01:02]} 18. Ndc4 {[%clk 0:02:09]}  Bxa3 {[%clk 0:00:06]} 19. Nxa3 {[%clk 0:02:08]}  Ne7 {[%clk 0:00:03]} 20. Nc4 {[%clk 0:02:08]}  Bc6 {[%clk 0:00:03]} 21. Ne5 {[%clk 0:01:56]}  Bd5 {[%clk 0:00:02]} 22. Bb6 {[%clk 0:01:56]}  Bxf3 {[%clk 0:00:01]} 23. Rxd8 {[%clk 0:01:54]} 1-0


[Site "https://www.chess.com"]

[Event "Titled Tuesday Blitz February 07 Late 2023"]
[White "Baches Garcia, Guillermo"]
[Black "Nasuta, Grzegorz"]
[WhiteFideId "2209764"]
[BlackFideId "1141686"]
[WhiteElo "2327"]
[BlackElo "2552"]
[Result "0-1"]
[Round "05"]
[TimeControl "180+2"]
[Date "2023.02.07"]
[WhiteClock "0:00:02"]
[BlackClock "0:00:12"]

1. e4 {[%clk 0:03:00]}  c5 {[%clk 0:03:00]} 2. Nf3 {[%clk 0:03:00]}  e6 {[%clk 0:03:00]} 3. d4 {[%clk 0:03:00]}  cxd4 {[%clk 0:03:01]} 4. Nxd4 {[%clk 0:03:00]}  a6 {[%clk 0:03:01]} 5. c4 {[%clk 0:03:00]}  Nf6 {[%clk 0:03:01]} 6. Nc3 {[%clk 0:03:00]}  Qc7 {[%clk 0:03:01]} 7. a3 {[%clk 0:03:00]}  Be7 {[%clk 0:03:00]} 8. Be2 {[%clk 0:02:59]}  b6 {[%clk 0:02:58]} 9. Be3 {[%clk 0:02:58]}  Bb7 {[%clk 0:02:59]} 10. f3 {[%clk 0:02:58]}  d6 {[%clk 0:02:59]} 11. O-O {[%clk 0:02:55]}  Nbd7 {[%clk 0:02:59]} 12. a4 {[%clk 0:02:53]}  O-O {[%clk 0:02:58]} 13. a5 {[%clk 0:02:53]}  bxa5 {[%clk 0:02:58]} 14. Nb3 {[%clk 0:02:53]}  Rab8 {[%clk 0:02:58]} 15. Nxa5 {[%clk 0:02:53]}  Ba8 {[%clk 0:02:59]} 16. Qd2 {[%clk 0:02:49]}  Rfc8 {[%clk 0:02:55]} 17. Rfc1 {[%clk 0:02:45]}  h6 {[%clk 0:02:38]} 18. Bf1 {[%clk 0:02:41]}  h5 {[%clk 0:02:36]} 19. Kh1 {[%clk 0:02:38]}  h4 {[%clk 0:02:36]} 20. Qf2 {[%clk 0:02:30]}  Ne5 {[%clk 0:02:23]} 21. Ba7 {[%clk 0:01:56]}  Rb4 {[%clk 0:02:22]} 22. Bd4 {[%clk 0:01:45]}  Ng6 {[%clk 0:01:39]} 23. b3 {[%clk 0:01:31]}  Nh5 {[%clk 0:01:35]} 24. Ne2 {[%clk 0:01:24]}  Bf6 {[%clk 0:01:30]} 25. Bxf6 {[%clk 0:01:14]}  Nxf6 {[%clk 0:01:31]} 26. Qd4 {[%clk 0:01:01]}  Ne5 {[%clk 0:01:20]} 27. Qd2 {[%clk 0:00:55]}  Rcb8 {[%clk 0:01:17]} 28. Rd1 {[%clk 0:00:46]}  R4b6 {[%clk 0:00:59]} 29. Nc3 {[%clk 0:00:36]}  h3 {[%clk 0:00:55]} 30. Qe3 {[%clk 0:00:33]}  hxg2+ {[%clk 0:00:52]} 31. Bxg2 {[%clk 0:00:33]}  Ng6 {[%clk 0:00:45]} 32. Ra2 {[%clk 0:00:23]}  Nh5 {[%clk 0:00:45]} 33. Ne2 {[%clk 0:00:20]}  Kf8 {[%clk 0:00:24]} 34. Qd4 {[%clk 0:00:19]}  Nhf4 {[%clk 0:00:22]} 35. Nxf4 {[%clk 0:00:19]}  Nxf4 {[%clk 0:00:22]} 36. Bf1 {[%clk 0:00:17]}  Kg8 {[%clk 0:00:20]} 37. Qe3 {[%clk 0:00:15]}  d5 {[%clk 0:00:20]} 38. e5 {[%clk 0:00:13]}  Ng6 {[%clk 0:00:20]} 39. c5 {[%clk 0:00:12]}  Rb4 {[%clk 0:00:20]} 40. c6 {[%clk 0:00:10]}  Nxe5 {[%clk 0:00:20]} 41. Rg2 {[%clk 0:00:06]}  Ng6 {[%clk 0:00:15]} 42. Qc5 {[%clk 0:00:03]}  R4b5 {[%clk 0:00:12]} 43. Bxb5 {[%clk 0:00:03]}  Rxb5 {[%clk 0:00:12]} 44. Qc3 {[%clk 0:00:02]}  Rxa5 {[%clk 0:00:12]} 0-1


[Site "https://www.chess.com"]

[Event "Titled Tuesday Blitz February 07 Late 2023"]
[White "reevecanada"]
[Black "Alex_Sahakyan2006"]
[WhiteElo "2474"]
[BlackElo "2733"]
[Result "0-1"]
[Round "05"]
[TimeControl "180+2"]
[Date "2023.02.07"]
[WhiteClock "0:00:19"]
[BlackClock "0:00:17"]

1. e4 {[%clk 0:00:42]}  c5 {[%clk 0:02:58]} 2. Nf3 {[%clk 0:00:42]}  g6 {[%clk 0:02:57]} 3. d4 {[%clk 0:00:41]}  cxd4 {[%clk 0:02:57]} 4. Qxd4 {[%clk 0:00:42]}  Nf6 {[%clk 0:02:55]} 5. Bb5 {[%clk 0:00:43]}  a6 {[%clk 0:02:49]} 6. e5 {[%clk 0:00:43]}  axb5 {[%clk 0:02:45]} 7. exf6 {[%clk 0:00:43]}  Ra4 {[%clk 0:02:34]} 8. Qe3 {[%clk 0:00:36]}  d5 {[%clk 0:02:26]} 9. O-O {[%clk 0:00:36]}  Re4 {[%clk 0:02:26]} 10. Qd3 {[%clk 0:00:36]}  exf6 {[%clk 0:02:23]} 11. Qxb5+ {[%clk 0:00:36]}  Bd7 {[%clk 0:01:35]} 12. Qxd5 {[%clk 0:00:35]}  Bc6 {[%clk 0:01:36]} 13. Qxd8+ {[%clk 0:00:35]}  Kxd8 {[%clk 0:01:37]} 14. Nc3 {[%clk 0:00:35]}  Re8 {[%clk 0:01:33]} 15. Rd1+ {[%clk 0:00:36]}  Kc8 {[%clk 0:01:32]} 16. Nd4 {[%clk 0:00:35]}  Bb4 {[%clk 0:01:28]} 17. Ncb5 {[%clk 0:00:34]}  Bxb5 {[%clk 0:01:24]} 18. Nxb5 {[%clk 0:00:35]}  Nc6 {[%clk 0:01:25]} 19. Bf4 {[%clk 0:00:34]}  Re4 {[%clk 0:01:20]} 20. Bg3 {[%clk 0:00:33]}  Rhe8 {[%clk 0:01:17]} 21. c3 {[%clk 0:00:33]}  Bf8 {[%clk 0:01:15]} 22. Bd6 {[%clk 0:00:32]}  Bh6 {[%clk 0:01:02]} 23. g3 {[%clk 0:00:32]}  Re2 {[%clk 0:00:58]} 24. Ba3 {[%clk 0:00:32]}  Bf8 {[%clk 0:00:55]} 25. Bxf8 {[%clk 0:00:32]}  Rxf8 {[%clk 0:00:56]} 26. Rab1 {[%clk 0:00:32]}  Re5 {[%clk 0:00:50]} 27. Nd6+ {[%clk 0:00:31]}  Kc7 {[%clk 0:00:50]} 28. Nc4 {[%clk 0:00:30]}  Re2 {[%clk 0:00:50]} 29. Ne3 {[%clk 0:00:31]}  Rd8 {[%clk 0:00:42]} 30. Rxd8 {[%clk 0:00:25]}  Nxd8 {[%clk 0:00:42]} 31. Kf1 {[%clk 0:00:25]}  Rd2 {[%clk 0:00:41]} 32. Ke1 {[%clk 0:00:26]}  Rd6 {[%clk 0:00:40]} 33. Ke2 {[%clk 0:00:26]}  f5 {[%clk 0:00:35]} 34. b3 {[%clk 0:00:27]}  Nc6 {[%clk 0:00:35]} 35. c4 {[%clk 0:00:27]}  Nd4+ {[%clk 0:00:35]} 36. Kf1 {[%clk 0:00:27]}  Nf3 {[%clk 0:00:33]} 37. Rd1 {[%clk 0:00:27]}  Rxd1+ {[%clk 0:00:29]} 38. Nxd1 {[%clk 0:00:28]}  Nxh2+ {[%clk 0:00:29]} 39. Ke2 {[%clk 0:00:29]}  Ng4 {[%clk 0:00:30]} 40. Nc3 {[%clk 0:00:29]}  Kc6 {[%clk 0:00:29]} 41. b4 {[%clk 0:00:29]}  Ne5 {[%clk 0:00:28]} 42. c5 {[%clk 0:00:29]}  h5 {[%clk 0:00:26]} 43. a4 {[%clk 0:00:28]}  g5 {[%clk 0:00:26]} 44. Ke3 {[%clk 0:00:27]}  h4 {[%clk 0:00:23]} 45. Kd4 {[%clk 0:00:26]}  h3 {[%clk 0:00:22]} 46. b5+ {[%clk 0:00:24]}  Kc7 {[%clk 0:00:22]} 47. Nd5+ {[%clk 0:00:23]}  Kb8 {[%clk 0:00:20]} 48. Kxe5 {[%clk 0:00:24]}  h2 {[%clk 0:00:20]} 49. c6 {[%clk 0:00:23]}  bxc6 {[%clk 0:00:21]} 50. bxc6 {[%clk 0:00:24]}  h1=Q {[%clk 0:00:21]} 51. Kd6 {[%clk 0:00:25]}  Qh6+ {[%clk 0:00:21]} 52. Kc5 {[%clk 0:00:24]}  Qf8+ {[%clk 0:00:20]} 53. Kb5 {[%clk 0:00:23]}  Qd6 {[%clk 0:00:19]} 54. Nb6 {[%clk 0:00:23]}  Kc7 {[%clk 0:00:19]} 55. Na8+ {[%clk 0:00:23]}  Kb8 {[%clk 0:00:19]} 56. Nb6 {[%clk 0:00:23]}  Qd3+ {[%clk 0:00:18]} 57. Kc5 {[%clk 0:00:22]}  Qc3+ {[%clk 0:00:18]} 58. Kb5 {[%clk 0:00:22]}  Qb2+ {[%clk 0:00:18]} 59. Kc5 {[%clk 0:00:23]}  Qxf2+ {[%clk 0:00:18]} 60. Kb5 {[%clk 0:00:23]}  Qb2+ {[%clk 0:00:15]} 61. Kc5 {[%clk 0:00:23]}  Qc3+ {[%clk 0:00:15]} 62. Kb5 {[%clk 0:00:24]}  f4 {[%clk 0:00:16]} 63. a5 {[%clk 0:00:20]}  f3 {[%clk 0:00:16]} 64. a6 {[%clk 0:00:20]}  f2 {[%clk 0:00:16]} 65. Nd7+ {[%clk 0:00:20]}  Kc7 {[%clk 0:00:16]} 66. a7 {[%clk 0:00:21]}  f1=Q+ {[%clk 0:00:16]} 67. Ka4 {[%clk 0:00:19]}  Qa6# {[%clk 0:00:17]} 0-1


[Site "https://www.chess.com"]

[Event "Titled Tuesday Blitz February 07 Late 2023"]
[White "Harish, Neeraj"]
[Black "Fiorito, Joaquin"]
[WhiteFideId "30958130"]
[BlackFideId "180173"]
[WhiteElo "2232"]
[BlackElo "2405"]
[Result "0-1"]
[Round "05"]
[TimeControl "180+2"]
[Date "2023.02.07"]
[WhiteClock "0:00:07"]
[BlackClock "0:01:45"]

1. e4 {[%clk 0:03:00]}  c6 {[%clk 0:02:59]} 2. d4 {[%clk 0:03:00]}  d5 {[%clk 0:02:59]} 3. e5 {[%clk 0:03:00]}  Bf5 {[%clk 0:02:59]} 4. h4 {[%clk 0:02:59]}  h5 {[%clk 0:02:59]} 5. Bd3 {[%clk 0:02:58]}  Bxd3 {[%clk 0:03:00]} 6. Qxd3 {[%clk 0:02:59]}  Qa5+ {[%clk 0:03:00]} 7. Nd2 {[%clk 0:02:58]}  e6 {[%clk 0:03:00]} 8. Nf3 {[%clk 0:02:52]}  Nh6 {[%clk 0:02:59]} 9. O-O {[%clk 0:02:29]}  Nf5 {[%clk 0:02:59]} 10. c4 {[%clk 0:02:28]}  Be7 {[%clk 0:02:59]} 11. b3 {[%clk 0:02:18]}  O-O {[%clk 0:02:58]} 12. g3 {[%clk 0:02:14]}  Rd8 {[%clk 0:02:58]} 13. Bb2 {[%clk 0:01:59]}  c5 {[%clk 0:02:57]} 14. cxd5 {[%clk 0:01:54]}  Rxd5 {[%clk 0:02:55]} 15. Nc4 {[%clk 0:01:52]}  Qa6 {[%clk 0:02:56]} 16. Qe4 {[%clk 0:01:23]}  cxd4 {[%clk 0:02:30]} 17. Nxd4 {[%clk 0:01:20]}  Nxd4 {[%clk 0:02:30]} 18. Bxd4 {[%clk 0:01:21]}  Nc6 {[%clk 0:02:30]} 19. Bb2 {[%clk 0:01:14]}  Rad8 {[%clk 0:02:29]} 20. Qf3 {[%clk 0:00:55]}  g6 {[%clk 0:02:25]} 21. a4 {[%clk 0:00:45]}  Rd3 {[%clk 0:02:22]} 22. Qf4 {[%clk 0:00:34]}  Rxb3 {[%clk 0:02:19]} 23. Ba3 {[%clk 0:00:28]}  Rd4 {[%clk 0:02:10]} 24. Qh6 {[%clk 0:00:15]}  Qxc4 {[%clk 0:02:03]} 25. Bxe7 {[%clk 0:00:14]}  Nxe7 {[%clk 0:02:04]} 26. Rac1 {[%clk 0:00:14]}  Qd5 {[%clk 0:01:52]} 27. Rc7 {[%clk 0:00:13]}  Qd8 {[%clk 0:01:51]} 28. Rfc1 {[%clk 0:00:12]}  Rd7 {[%clk 0:01:44]} 29. Rxd7 {[%clk 0:00:08]}  Qxd7 {[%clk 0:01:45]} 30. Qe3 {[%clk 0:00:07]}  Rxe3 {[%clk 0:01:45]} 0-1


[Site "https://www.chess.com"]

[Event "Titled Tuesday Blitz February 07 Late 2023"]
[White "Koutlas, Nikolaos"]
[Black "Zierk, Steven"]
[WhiteFideId "25827138"]
[BlackFideId "2034255"]
[WhiteElo "2341"]
[BlackElo "2488"]
[Result "0-1"]
[Round "05"]
[TimeControl "180+2"]
[Date "2023.02.07"]
[WhiteClock "0:00:44"]
[BlackClock "0:01:28"]

1. c4 {[%clk 0:02:59]}  e6 {[%clk 0:02:59]} 2. Nc3 {[%clk 0:02:57]}  f5 {[%clk 0:02:59]} 3. g3 {[%clk 0:02:54]}  Bb4 {[%clk 0:02:58]} 4. Qb3 {[%clk 0:02:52]}  c5 {[%clk 0:02:54]} 5. Nb5 {[%clk 0:02:52]}  d6 {[%clk 0:02:50]} 6. Qd3 {[%clk 0:02:45]}  Ke7 {[%clk 0:02:49]} 7. Bg2 {[%clk 0:02:35]}  Nc6 {[%clk 0:02:46]} 8. Nf3 {[%clk 0:02:29]}  e5 {[%clk 0:02:42]} 9. Nh4 {[%clk 0:02:17]}  e4 {[%clk 0:02:37]} 10. Qd5 {[%clk 0:02:07]}  g6 {[%clk 0:02:28]} 11. Bxe4 {[%clk 0:01:37]}  Nf6 {[%clk 0:02:24]} 12. Qd3 {[%clk 0:01:35]}  fxe4 {[%clk 0:02:19]} 13. Qe3 {[%clk 0:01:35]}  a6 {[%clk 0:02:14]} 14. Nc3 {[%clk 0:01:33]}  Nd4 {[%clk 0:02:14]} 15. Nd5+ {[%clk 0:01:23]}  Kf7 {[%clk 0:02:08]} 16. O-O {[%clk 0:01:20]}  Nc2 {[%clk 0:02:02]} 17. Qf4 {[%clk 0:01:18]}  Nxa1 {[%clk 0:02:00]} 18. a3 {[%clk 0:01:19]}  h6 {[%clk 0:01:50]} 19. Nxg6 {[%clk 0:00:59]}  Kxg6 {[%clk 0:01:45]} 20. axb4 {[%clk 0:00:59]}  Nxd5 {[%clk 0:01:42]} 21. cxd5 {[%clk 0:00:58]}  Qf6 {[%clk 0:01:40]} 22. Qxe4+ {[%clk 0:00:57]}  Bf5 {[%clk 0:01:40]} 23. Qc4 {[%clk 0:00:55]}  b5 {[%clk 0:01:37]} 24. Qa2 {[%clk 0:00:54]}  Nc2 {[%clk 0:01:37]} 25. bxc5 {[%clk 0:00:54]}  dxc5 {[%clk 0:01:35]} 26. d3 {[%clk 0:00:55]}  Bh3 {[%clk 0:01:30]} 27. Rd1 {[%clk 0:00:50]}  Rhf8 {[%clk 0:01:29]} 28. f3 {[%clk 0:00:46]}  Qd4+ {[%clk 0:01:29]} 29. e3 {[%clk 0:00:44]}  Nxe3 {[%clk 0:01:28]} 0-1


[Site "https://www.chess.com"]

[Event "Titled Tuesday Blitz February 07 Late 2023"]
[White "Indjic, Aleksandar"]
[Black "Vovk, Orest"]
[WhiteFideId "911925"]
[BlackFideId "14113490"]
[WhiteElo "2618"]
[BlackElo "2315"]
[Result "1-0"]
[Round "05"]
[TimeControl "180+2"]
[Date "2023.02.07"]
[WhiteClock "0:00:50"]
[BlackClock "0:00:19"]

1. a3 {[%clk 0:03:00]}  g5 {[%clk 0:02:45]} 2. d4 {[%clk 0:02:59]}  h6 {[%clk 0:02:43]} 3. e4 {[%clk 0:02:57]}  Bg7 {[%clk 0:02:43]} 4. h4 {[%clk 0:02:56]}  g4 {[%clk 0:02:42]} 5. c3 {[%clk 0:02:53]}  d5 {[%clk 0:02:42]} 6. e5 {[%clk 0:02:53]}  c5 {[%clk 0:02:42]} 7. b4 {[%clk 0:02:44]}  cxd4 {[%clk 0:02:41]} 8. cxd4 {[%clk 0:02:44]}  Nc6 {[%clk 0:02:41]} 9. Be3 {[%clk 0:02:40]}  Qb6 {[%clk 0:02:33]} 10. Nc3 {[%clk 0:02:38]}  Be6 {[%clk 0:02:13]} 11. Rc1 {[%clk 0:02:37]}  g3 {[%clk 0:02:00]} 12. f4 {[%clk 0:02:18]}  h5 {[%clk 0:01:55]} 13. Nge2 {[%clk 0:02:17]}  Nh6 {[%clk 0:01:52]} 14. Nxg3 {[%clk 0:02:17]}  Ng4 {[%clk 0:01:49]} 15. Bg1 {[%clk 0:02:14]}  f5 {[%clk 0:01:49]} 16. Bd3 {[%clk 0:02:10]}  Kf7 {[%clk 0:01:38]} 17. Nxf5 {[%clk 0:02:07]}  Bxf5 {[%clk 0:01:22]} 18. Bxf5 {[%clk 0:02:05]}  e6 {[%clk 0:01:23]} 19. Bxg4 {[%clk 0:01:56]}  hxg4 {[%clk 0:01:24]} 20. Qxg4 {[%clk 0:01:54]}  Rag8 {[%clk 0:01:23]} 21. Qd1 {[%clk 0:01:42]}  Bh6 {[%clk 0:01:22]} 22. g4 {[%clk 0:01:41]}  Ke7 {[%clk 0:01:02]} 23. Na4 {[%clk 0:01:14]}  Qb5 {[%clk 0:00:51]} 24. Be3 {[%clk 0:01:11]}  Rxg4 {[%clk 0:00:43]} 25. Nc3 {[%clk 0:01:03]}  Qc4 {[%clk 0:00:43]} 26. Qxg4 {[%clk 0:01:01]}  Nxd4 {[%clk 0:00:43]} 27. Bxd4 {[%clk 0:00:57]}  Qxd4 {[%clk 0:00:42]} 28. Ne2 {[%clk 0:00:58]}  Qe4 {[%clk 0:00:24]} 29. Rh3 {[%clk 0:00:52]}  d4 {[%clk 0:00:19]} 30. Qf3 {[%clk 0:00:50]} 1-0


[Site "https://www.chess.com"]

[Event "Titled Tuesday Blitz February 07 Late 2023"]
[White "Papayan, Oleg"]
[Black "Pakleza, Zbigniew"]
[WhiteFideId "4193911"]
[BlackFideId "1119290"]
[WhiteElo "2253"]
[BlackElo "2494"]
[Result "1/2-1/2"]
[Round "05"]
[TimeControl "180+2"]
[Date "2023.02.07"]
[WhiteClock "0:00:07"]
[BlackClock "0:00:03"]

1. d4 {[%clk 0:02:55]}  d6 {[%clk 0:02:56]} 2. Nf3 {[%clk 0:02:54]}  Bg4 {[%clk 0:02:56]} 3. e4 {[%clk 0:02:52]}  Nf6 {[%clk 0:02:56]} 4. Nc3 {[%clk 0:02:51]}  e6 {[%clk 0:02:56]} 5. h3 {[%clk 0:02:49]}  Bh5 {[%clk 0:02:56]} 6. Be2 {[%clk 0:02:48]}  Be7 {[%clk 0:02:55]} 7. O-O {[%clk 0:02:48]}  d5 {[%clk 0:02:54]} 8. exd5 {[%clk 0:02:35]}  exd5 {[%clk 0:02:55]} 9. Bf4 {[%clk 0:02:34]}  O-O {[%clk 0:02:53]} 10. Re1 {[%clk 0:02:32]}  c6 {[%clk 0:02:51]} 11. Ne5 {[%clk 0:02:25]}  Bxe2 {[%clk 0:02:50]} 12. Nxe2 {[%clk 0:02:18]}  Re8 {[%clk 0:02:41]} 13. Ng3 {[%clk 0:02:11]}  Nbd7 {[%clk 0:02:37]} 14. c3 {[%clk 0:01:56]}  g6 {[%clk 0:02:07]} 15. Qd2 {[%clk 0:01:31]}  Nf8 {[%clk 0:01:54]} 16. Nd3 {[%clk 0:01:05]}  Ne6 {[%clk 0:01:40]} 17. Be5 {[%clk 0:01:05]}  Nd7 {[%clk 0:01:29]} 18. Re2 {[%clk 0:00:59]}  Bg5 {[%clk 0:01:11]} 19. Qc2 {[%clk 0:00:47]}  Bh4 {[%clk 0:00:55]} 20. Rae1 {[%clk 0:00:31]}  Nxe5 {[%clk 0:00:39]} 21. Rxe5 {[%clk 0:00:27]}  Bxg3 {[%clk 0:00:37]} 22. fxg3 {[%clk 0:00:27]}  Ng7 {[%clk 0:00:35]} 23. Rxe8+ {[%clk 0:00:22]}  Nxe8 {[%clk 0:00:36]} 24. Qe2 {[%clk 0:00:21]}  Nd6 {[%clk 0:00:22]} 25. Qe5 {[%clk 0:00:20]}  Ne4 {[%clk 0:00:10]} 26. Nf2 {[%clk 0:00:18]}  Nf6 {[%clk 0:00:08]} 27. Nd3 {[%clk 0:00:14]}  Ne4 {[%clk 0:00:04]} 28. Nf2 {[%clk 0:00:14]}  Nd6 {[%clk 0:00:05]} 29. Ng4 {[%clk 0:00:12]}  Nf5 {[%clk 0:00:02]} 30. Nf6+ {[%clk 0:00:10]}  Kf8 {[%clk 0:00:02]} 31. Nxh7+ {[%clk 0:00:10]}  Kg8 {[%clk 0:00:03]} 32. Nf6+ {[%clk 0:00:08]}  Kf8 {[%clk 0:00:04]} 33. Ng4 {[%clk 0:00:06]}  Kg8 {[%clk 0:00:03]} 34. Qf4 {[%clk 0:00:05]}  Qd6 {[%clk 0:00:02]} 35. Nh6+ {[%clk 0:00:05]}  Kh7 {[%clk 0:00:01]} 36. Nxf5 {[%clk 0:00:02]}  Qxf4 {[%clk 0:00:01]} 37. gxf4 {[%clk 0:00:03]}  gxf5 {[%clk 0:00:02]} 38. Re7 {[%clk 0:00:03]}  Kg6 {[%clk 0:00:01]} 39. Rxb7 {[%clk 0:00:03]}  a5 {[%clk 0:00:02]} 40. Rc7 {[%clk 0:00:03]}  Ra6 {[%clk 0:00:02]} 41. Kf2 {[%clk 0:00:02]}  a4 {[%clk 0:00:03]} 42. b4 {[%clk 0:00:02]}  axb3 {[%clk 0:00:03]} 43. axb3 {[%clk 0:00:03]}  f6 {[%clk 0:00:03]} 44. Kf3 {[%clk 0:00:03]}  Ra3 {[%clk 0:00:03]} 45. Rxc6 {[%clk 0:00:03]}  Rxb3 {[%clk 0:00:04]} 46. Rc5 {[%clk 0:00:03]}  Ra3 {[%clk 0:00:05]} 47. Ke3 {[%clk 0:00:01]}  Ra1 {[%clk 0:00:05]} 48. Kf3 {[%clk 0:00:02]}  Re1 {[%clk 0:00:05]} 49. Kf2 {[%clk 0:00:02]}  Rc1 {[%clk 0:00:05]} 50. g3 {[%clk 0:00:03]}  Rc2+ {[%clk 0:00:06]} 51. Kf3 {[%clk 0:00:03]}  Rc1 {[%clk 0:00:06]} 52. g4 {[%clk 0:00:02]}  Rf1+ {[%clk 0:00:05]} 53. Kg3 {[%clk 0:00:03]}  Rc1 {[%clk 0:00:06]} 54. gxf5+ {[%clk 0:00:02]}  Kxf5 {[%clk 0:00:07]} 55. Rxd5+ {[%clk 0:00:03]}  Ke4 {[%clk 0:00:07]} 56. Rc5 {[%clk 0:00:04]}  Rg1+ {[%clk 0:00:06]} 57. Kf2 {[%clk 0:00:04]}  Rh1 {[%clk 0:00:06]} 58. Kg2 {[%clk 0:00:04]}  Rc1 {[%clk 0:00:06]} 59. f5 {[%clk 0:00:05]}  Kf4 {[%clk 0:00:05]} 60. Kf2 {[%clk 0:00:05]}  Rc2+ {[%clk 0:00:06]} 61. Ke1 {[%clk 0:00:05]}  Rh2 {[%clk 0:00:05]} 62. Rc6 {[%clk 0:00:05]}  Kxf5 {[%clk 0:00:05]} 63. c4 {[%clk 0:00:05]}  Ke4 {[%clk 0:00:05]} 64. Rxf6 {[%clk 0:00:05]}  Kxd4 {[%clk 0:00:05]} 65. Rf4+ {[%clk 0:00:05]}  Kc5 {[%clk 0:00:05]} 66. h4 {[%clk 0:00:06]}  Ra2 {[%clk 0:00:05]} 67. Kf1 {[%clk 0:00:06]}  Rb2 {[%clk 0:00:04]} 68. Kg1 {[%clk 0:00:05]}  Kd6 {[%clk 0:00:04]} 69. h5 {[%clk 0:00:05]}  Ke5 {[%clk 0:00:04]} 70. Rh4 {[%clk 0:00:06]}  Rb7 {[%clk 0:00:03]} 71. h6 {[%clk 0:00:06]}  Rh7 {[%clk 0:00:04]} 72. Kf2 {[%clk 0:00:05]}  Kf5 {[%clk 0:00:03]} 73. Ke3 {[%clk 0:00:06]}  Kg5 {[%clk 0:00:04]} 74. Rh2 {[%clk 0:00:05]}  Kg6 {[%clk 0:00:05]} 75. Kd4 {[%clk 0:00:05]}  Rd7+ {[%clk 0:00:05]} 76. Ke5 {[%clk 0:00:05]}  Kh7 {[%clk 0:00:06]} 77. c5 {[%clk 0:00:05]}  Rd2 {[%clk 0:00:06]} 78. c6 {[%clk 0:00:05]}  Rxh2 {[%clk 0:00:05]} 79. Kd6 {[%clk 0:00:06]}  Rd2+ {[%clk 0:00:05]} 80. Ke7 {[%clk 0:00:05]}  Kxh6 {[%clk 0:00:02]} 81. c7 {[%clk 0:00:06]}  Rc2 {[%clk 0:00:02]} 82. Kd7 {[%clk 0:00:07]}  Rxc7+ {[%clk 0:00:03]} 83. Kxc7 {[%clk 0:00:07]} 1/2-1/2


[Site "https://www.chess.com"]